Posting Date,Expenditure Area,Supplier Name, Amount ,Expense Type,Reason for Expense
28-May-20,Corporate Management Team,Asda George Com Leeds,560.84,Specific Campaigns / Projects expenditure,Purchase various household items for East Villa - DL fund
22-May-20,Culture & Environment Services,Advance Supplies,237.95,Materials and Supplies - Miscellaneous,Sun protection cream for dispensers
01-May-20,Culture & Environment Services,Amazon.Co.Uk,47.27,Equipment / Furniture / Materials,Till drawer
04-May-20,Culture & Environment Services,Amazon.Co.Uk,19.37,Equipment / Furniture / Materials,Paint for the park
08-May-20,Culture & Environment Services,Amazon.Co.Uk,15.82,Materials and Supplies - Miscellaneous,Spray Paint - CHRISTCHURCH PARK
07-May-20,Culture & Environment Services,Amznmktplace Amazon.Co.Uk,12.04,Computer Consumables and other Minor IT costs,3x USB charger cables
06-May-20,Culture & Environment Services,Amznmktplace Amazon.Co.Uk,166.66,Computer Equipment - Purchase,1x tablet
06-May-20,Culture & Environment Services,Amznmktplace Amazon.Co.Uk,12.48,Materials and Supplies - Miscellaneous,Spray Paint - CHRISTCHURCH PARK
11-May-20,Culture & Environment Services,Amznmktplace Amazon.Co.Uk,4.82,Materials and Supplies - Miscellaneous,Greenhouse Clips - CHRISTCHURCH PARK
21-May-20,Culture & Environment Services,Amznmktplace Amazon.Co.Uk,83.25,Materials and Supplies - Miscellaneous,Various A4 Project Folders - CHRISTCHURCH PARK
25-May-20,Culture & Environment Services,Amznmktplace Amazon.Co.Uk,10.54,Materials and Supplies - Miscellaneous,Polypockets/folders - CHRISTCHURCH PARK
22-Apr-20,Culture & Environment Services,Amznmktplace Amazon.Co.Uk,-45.93,Specific Campaigns / Projects expenditure,Athletics Equipment
22-May-20,Culture & Environment Services,Amznmktplace Amazon.Co.Uk,94.90,Stationery,ink cartridges
15-May-20,Culture & Environment Services,Argos Ltd,18.74,Miscellaneous Stock  - Purchases,CD-R 52x speed - CEMETERIES
06-May-20,Culture & Environment Services,B & Q 1315,9.17,Materials and Supplies - Miscellaneous,Bedding - CHANTRY PARK
07-May-20,Culture & Environment Services,B & Q 1315,27.50,Materials and Supplies - Miscellaneous,Bedding - CHANTRY PARK
07-May-20,Culture & Environment Services,B & Q 1315,68.06,Materials and Supplies - Miscellaneous,Spray paint - CHRISTCHURCH PARK
22-May-20,Culture & Environment Services,B & Q 1315,36.67,Materials and Supplies - Miscellaneous,Hammerite Smooth White Paint 2.5L
22-May-20,Culture & Environment Services,B & Q 1315,15.83,Materials and Supplies - Miscellaneous,Postcrete - CHRISTCHURCH PARK
13-May-20,Culture & Environment Services,B & Q 1315,5.45,Miscellaneous Stock  - Purchases,Gaffer Tape - LANDSCAPE TEAM
15-May-20,Culture & Environment Services,B & Q 1315,38.00,Miscellaneous Stock  - Purchases,Tarpaulin - PLAY AREA INSTALLATION MAGDALEN GATE SCHOOL
27-May-20,Culture & Environment Services,British Cycling Fe,33.00,Miscellaneous Expenses,Crafted Entry 2020 Refunds
27-May-20,Culture & Environment Services,British Cycling Fe,33.00,Miscellaneous Expenses,Crafted Entry 2020 Refunds
27-May-20,Culture & Environment Services,British Cycling Fe,56.00,Miscellaneous Expenses,Crafted Entry 2020 Refunds
27-May-20,Culture & Environment Services,British Cycling Fe,364.00,Miscellaneous Expenses,Crafted Entry 2020 Refunds
27-May-20,Culture & Environment Services,British Cycling Fe,728.00,Miscellaneous Expenses,Crafted Entry 2020 Refunds
29-Apr-20,Culture & Environment Services,Cpw Locksmiths And Securi,67.50,Equipment / Furniture / Materials,Keys for Cemetery gates
04-May-20,Culture & Environment Services,Cpw Locksmiths And Securi,116.67,Equipment / Furniture / Materials,Keys for Cemetery buildings
21-May-20,Culture & Environment Services,Cpw Locksmiths And Securi,25.00,Equipment / Furniture / Materials,Keys for Cemetery gates
21-May-20,Culture & Environment Services,Cpw Locksmiths And Securi,34.17,Materials and Supplies - Miscellaneous,Key Cutting
12-May-20,Culture & Environment Services,Dvla Vehicle Tax,267.50,Direct Transport Costs,Vehicle Tax for AV10 KXG
12-May-20,Culture & Environment Services,Dvla Vehicle Tax,267.50,Direct Transport Costs,Vehicle Tax for AV10 LMO
12-May-20,Culture & Environment Services,Dvla Vehicle Tax,267.50,Direct Transport Costs,Vehicle Tax for AV10 LYZ
12-May-20,Culture & Environment Services,Dvla Vehicle Tax,267.50,Direct Transport Costs,Vehicle Tax for AV10 LZC
12-May-20,Culture & Environment Services,Dvla Vehicle Tax,167.50,Direct Transport Costs,Vehicle Tax for AV10 MXK
12-May-20,Culture & Environment Services,Dvla Vehicle Tax,267.50,Direct Transport Costs,Vehicle Tax for av10 opf
12-May-20,Culture & Environment Services,Dvla Vehicle Tax,267.50,Direct Transport Costs,vehicle tax for av10 ukb
12-May-20,Culture & Environment Services,Dvla Vehicle Tax,267.50,Direct Transport Costs,Vehicle Tax for AV10 UKC
12-May-20,Culture & Environment Services,Dvla Vehicle Tax,267.50,Direct Transport Costs,Vehicle Tax for AV10 UKD
12-May-20,Culture & Environment Services,Dvla Vehicle Tax,267.50,Direct Transport Costs,Vehicle Tax for AV10 UKF
12-May-20,Culture & Environment Services,Dvla Vehicle Tax,267.50,Direct Transport Costs,Vehicle Tax for AV10 XVM
12-May-20,Culture & Environment Services,Dvla Vehicle Tax,267.50,Direct Transport Costs,Vehicle Tax for AV11 XCR
15-May-20,Culture & Environment Services,Dvla Vehicle Tax,267.50,Direct Transport Costs,Vehicle Tax for AV10 VXY
15-May-20,Culture & Environment Services,Dvla Vehicle Tax,167.50,Direct Transport Costs,Vehicle Tax for AY18 DNJ
12-May-20,Culture & Environment Services,Dvla Vehicle Tax,267.50,Parks Vehicle Costs,vehicle tax av10 vxz
12-May-20,Culture & Environment Services,Dvla Vehicle Tax,267.50,Parks Vehicle Costs,Vehicle Tax for AR07 CZV
12-May-20,Culture & Environment Services,Dvla Vehicle Tax,267.50,Parks Vehicle Costs,Vehicle Tax for AR07 DXE
12-May-20,Culture & Environment Services,Dvla Vehicle Tax,267.50,Parks Vehicle Costs,Vehicle Tax for AU17 HPP
12-May-20,Culture & Environment Services,Dvla Vehicle Tax,267.50,Parks Vehicle Costs,Vehicle Tax for FG16 LJA
12-May-20,Culture & Environment Services,Dvla Vehicle Tax,267.50,Parks Vehicle Costs,Vehicle Tax for FL16 KPX
19-May-20,Culture & Environment Services,Dvla Vehicle Tax,267.50,Parks Vehicle Costs,Vehicle Tax for AR07 DWO
01-May-20,Culture & Environment Services,Groundsman Tools And Supp,212.03,Materials and Supplies - Miscellaneous,Rakes for the Cemetery
06-May-20,Culture & Environment Services,Hg Gladwell & Sons,28.50,Materials and Supplies - Miscellaneous,Wildlife feed - PARK PATROL
18-May-20,Culture & Environment Services,Honey Brothers Ltd,110.55,Clothing / Uniform & Laundry,Petzl Vertex Vent Helmet and Hygiene Kit Ear defenders
27-May-20,Culture & Environment Services,Horticultural Sppls Ltd,49.32,Materials and Supplies - Miscellaneous,Chemicals - CHANTRY PARK
28-May-20,Culture & Environment Services,Horticultural Sppls Ltd,37.17,Materials and Supplies - Miscellaneous,Growmore Granular 25kg bags compost
27-May-20,Culture & Environment Services,Indespension,9.24,Miscellaneous Stock  - Purchases,Electric connections for trailers
18-May-20,Culture & Environment Services,Leisureteq,170.00,Equipment / Furniture / Materials,dosing parts
18-May-20,Culture & Environment Services,Lumberjacks,31.25,Materials and Supplies - Miscellaneous,Sawn and Staples
05-May-20,Culture & Environment Services,Machine Mart Ltd,62.99,Equipment / Furniture / Materials,puddle pump
07-May-20,Culture & Environment Services,Machine Mart Ltd,37.97,Miscellaneous Stock  - Purchases,Various tools for Play Area Installation - CHRISTCHURCH PARK
08-May-20,Culture & Environment Services,McCormick Tools Ltd,112.40,Parks Vehicle Costs,Beacons for stock
18-May-20,Culture & Environment Services,Narey S Garden Cen,50.00,Miscellaneous Stock  - Purchases,Various Plants - CHRISTCHURCH PARK
20-May-20,Culture & Environment Services,Nelson Potter (Dodnash,143.27,Equipment / Furniture / Materials,Gippeswyk Fencing
19-May-20,Culture & Environment Services,Norfolk Cement And Buildi,280.00,Miscellaneous Stock  - Purchases,Play Area installtion
06-May-20,Culture & Environment Services,Sainsburys S/mkt,1.83,Materials and Supplies - Miscellaneous,Sundries for Waste Services
25-May-20,Culture & Environment Services,Sainsburys S/mkt,0.92,Materials and Supplies - Miscellaneous,Sundries for Waste Services
28-May-20,Culture & Environment Services,Sainsburys S/mkt,1.83,Materials and Supplies - Miscellaneous,Sundries for Waste Services
15-May-20,Culture & Environment Services,Sainsburys S/mkts,6.66,Materials and Supplies - Miscellaneous,CD's for funeral music
18-May-20,Culture & Environment Services,Screens-R-Us-Limited,84.00,Direct Transport Costs,Fitted 1/4 glass to vehicle OPO F6653
25-May-20,Culture & Environment Services,Screens-R-Us-Limited,48.00,Direct Transport Costs,Chip repair to GN69 WTE
06-May-20,Culture & Environment Services,Screwfix Direct,9.57,Equipment / Furniture / Materials,USB plug for Crematorium
25-May-20,Culture & Environment Services,Screwfix Direct,35.82,Equipment / Furniture / Materials,Hose for watering plants
07-May-20,Culture & Environment Services,Screwfix Direct,17.48,Materials and Supplies - Miscellaneous,sweatshirts for colleague
20-May-20,Culture & Environment Services,Screwfix Direct,49.15,Materials and Supplies - Miscellaneous,replacement hose for watering flowers/trees
29-May-20,Culture & Environment Services,Screwfix Direct,74.90,Materials and Supplies - Miscellaneous,Fixings to fix benches to the ground
06-May-20,Culture & Environment Services,St John Ambulance,16.25,Materials and Supplies - Miscellaneous,First Aid Equipment
18-May-20,Culture & Environment Services,Tahdah Verified,40.00,Training/Courses Running Costs,Training License Renewal
27-May-20,Culture & Environment Services,Tahdah Verified,40.00,Training/Courses Running Costs,Yearly renewal of membership to ensure return tests 4 staff
15-May-20,Culture & Environment Services,Tesco Store 2748,9.07,Materials and Supplies - Miscellaneous,Sundries for Waste Services
01-May-20,Culture & Environment Services,The Range,21.67,Materials and Supplies - Miscellaneous,Bedding - CHANTRY PARK
01-May-20,Culture & Environment Services,The Range,28.33,Materials and Supplies - Miscellaneous,Bedding - CHANTRY PARK
04-May-20,Culture & Environment Services,The Range,43.33,Materials and Supplies - Miscellaneous,Bedding - CHANTRY PARK
07-May-20,Culture & Environment Services,The Range,23.33,Materials and Supplies - Miscellaneous,Bedding - CHANTRY PARK
07-May-20,Culture & Environment Services,The Range,9.65,Materials and Supplies - Miscellaneous,Spray paint - CHRISTCHURCH PARK
25-May-20,Culture & Environment Services,The Range,20.83,Materials and Supplies - Miscellaneous,Flowers for CHANTRY PARK
01-May-20,Culture & Environment Services,The Range,20.00,Miscellaneous Stock  - Purchases,Lobelia
01-May-20,Culture & Environment Services,Tilers Tools,85.70,Miscellaneous Stock  - Purchases,Measuring tapes for use on CCP play area
07-May-20,Culture & Environment Services,Uniconomy Ltd (UK),"-3,297.50",Materials and Supplies - Miscellaneous,Full Credit for 300 x hand Santisers
12-May-20,Culture & Environment Services,Victoria Nurseries,208.33,Equipment / Furniture / Materials,Soil conditioner for the flower beds
06-May-20,Culture & Environment Services,Victoria Nurseries,141.67,Materials and Supplies - Miscellaneous,Various bedding plants for CHRISTCHURCH PARK
14-May-20,Culture & Environment Services,Victoria Nurseries,16.66,Materials and Supplies - Miscellaneous,Compost for Plants
19-May-20,Culture & Environment Services,Victoria Nurseries,23.32,Miscellaneous Stock  - Purchases,Fertiliser - CHRISTCHURCH PARK
19-May-20,Culture & Environment Services,Wilko Retail Limited,4.17,Equipment / Furniture / Materials,spray bottles
27-May-20,Culture & Environment Services,Wilko Retail Limited,20.00,Equipment / Furniture / Materials,shower heads x 2 and shower hoses x 2
15-May-20,Culture & Environment Services,Www.Absoluteindustrial,131.17,Miscellaneous Stock  - Purchases,safety clips and pins for transport
20-May-20,Culture & Environment Services,Www.Agratech.Co.Uk,31.00,Materials and Supplies - Miscellaneous,Red Nozzles
29-May-20,Culture & Environment Services,Www.Buyaparcel.Com,33.29,Equipment / Furniture / Materials,hose reel for outside customer services
05-May-20,Culture & Environment Services,Www.Chainsdirect.Co.Uk,80.83,Clothing / Uniform & Laundry,2 x small boodies for Arb Team
15-May-20,Culture & Environment Services,Www.Firstfence.Co.Uk,608.00,Miscellaneous Stock  - Purchases,Anti-tamper couplers for temporary fencing - CCP PLAY AREA
21-May-20,Culture & Environment Services,Www.Lifesaversdirect,-113.40,Equipment / Furniture / Materials,Refund for Resus Manikin Parts
20-May-20,Culture & Environment Services,Www.Solopress.Com,357.50,Equipment / Furniture / Materials,Cleaning stations for table tennis
27-May-20,Culture & Environment Services,Www.Solopress.Com,-357.50,Equipment / Furniture / Materials,items not delivered
21-May-20,Culture & Environment Services,Www.Sorbus-Intl.Co,174.60,Materials and Supplies - Miscellaneous,Clinometer
06-May-20,Culture & Environment Services,Www.Toolstation.Com,486.53,Miscellaneous Stock  - Purchases,Replacement tools for the Landscape Team
12-May-20,Culture & Environment Services,Www.Toolstation.Com,58.68,Miscellaneous Stock  - Purchases,Items for Christchurch Park play area
26-May-20,Development,Asda Stores 4278,8.33,Cleaning Supplies,Hand soap
18-May-20,Development,Ihbc.Org.Uk,20.83,Training Expenses,IHBC Virtual School 2020 Pre Reg (online course)
27-May-20,Development,Ipswich Borough Co,80.00,Capital - Specific Works,Suspension 2nd parking space St Georges St/Museum roof reps
27-May-20,Development,Ipswich Borough Co,80.00,Capital - Specific Works,Suspension of parking space - St Georges St/Museum roof rep
18-May-20,Development,Sainsburys S/mkt,17.85,Subsistence & Conference/Seminar / Event Expenses,milk coffee tea
08-May-20,Development,Tnt Direct Wl,88.70,Postage Costs,Postage Costs
21-May-20,Development,"Www,eastsuffolk.Gov.Uk",96.00,Non Contracted_Professional Services,Partnership Inspections 10 Hall Farm Close
07-May-20,Development,Www.Banneruk.Com,18.08,Stationery,Post it notes for Examination (Planning Policy)
25-May-20,Development,Www.Mailcoms.Co.Uk,144.85,Postage Costs,franking ink
28-May-20,Development,Www.Planningportal.Co.,259.00,Reactive Repairs,Renewal planning app for St Peters Dock c/pk
06-May-20,Development,Www.Tcpa.Org.Uk,30.00,Training Expenses,RC TCPA Webinar training course
29-May-20,Finance & Revenues,Amznmktplace,109.99,Computer Equipment - Purchase,HP Printer All in one
27-May-20,Finance & Revenues,Amznmktplace Amazon.Co.Uk,35.96,Computer Equipment - Purchase,4 x Wireless Mse
28-May-20,Finance & Revenues,Amznmktplace Amazon.Co.Uk,67.96,Computer Equipment - Purchase,4 x Ergonomic Mice
28-May-20,Finance & Revenues,Amznmktplace Amazon.Co.Uk,25.35,Computer Equipment - Purchase,Surface HDMI converters
12-May-20,Finance & Revenues,Amznmktplace Amazon.Co.Uk,29.12,Telecommunication Costs - Mobiles,Protective cases for Smartphones
25-May-20,Finance & Revenues,Cbt Nuggets Llc,49.98,Training Expenses,ICT Training
15-May-20,Finance & Revenues,Currys Online,74.98,Computer Equipment - Purchase,VDU & HDMI Cable 
28-May-20,Finance & Revenues,Currys Online,58.32,Computer Equipment - Purchase,"18.5"" Monitor & VGA cable "
20-May-20,Finance & Revenues,Digicert Inc,379.46,Computer Consumables and other Minor IT costs,SSL/TLS certificate
29-May-20,Finance & Revenues,Ebuyer (UK) Ltd,96.51,Computer Equipment - Purchase,All in one printer
11-May-20,Finance & Revenues,Kaplan Financial Ltd,-35.00,Training Expenses,Refund for AAT Exams 
11-May-20,Finance & Revenues,Kaplan Financial Ltd,-46.00,Training Expenses,Refund for AAT Exams 
19-May-20,Finance & Revenues,Kenable Ltd,76.79,Equipment / Furniture / Materials,Agile USB-C Cables
06-May-20,Finance & Revenues,Paypal,31.98,Advertising/Publicity,Domain renewal
08-May-20,Finance & Revenues,Paypal,103.92,Computer Software - Maintenance,Domain renewals
21-May-20,Finance & Revenues,Paypal,17.01,Computer Software - Purchase,Software upgrade license
08-May-20,Finance & Revenues,Service Fees - Fraedom Pty Ltd,383.15,Computer Software - Maintenance,Fraedom Card Fees - 01/04/20 to 30/04/20
19-May-20,Finance & Revenues,Www.Paessler.Com,650.40,Computer Software - Purchase,Paessler PRTG server monitoring software
28-May-20,Finance & Revenues,Www.Pro2col.Com,147.00,Computer Equipment - Purchase,File transfer software
13-May-20,Housing & Community Services,Amazon Prime,7.99,Equipment / Furniture / Materials,Amazon Prime
25-May-20,Housing & Community Services,Amznmktplace,28.97,Computer Equipment - Purchase,HDMI cables
08-May-20,Housing & Community Services,Amznmktplace Amazon.Co.Uk,19.99,Computer Equipment - Purchase,Headset for Stores.
08-May-20,Housing & Community Services,Amznmktplace Amazon.Co.Uk,35.34,Publications - Purchase,Books
11-May-20,Housing & Community Services,Amznmktplace Amazon.Co.Uk,40.52,Telecommunication Costs - Mobiles,USB chargers/stylus for tablets
13-May-20,Housing & Community Services,Amznmktplace Amazon.Co.Uk,137.70,Telecommunication Costs - Mobiles,Tablet cases
25-May-20,Housing & Community Services,Amznmktplace Amazon.Co.Uk,6.50,Telecommunication Costs - Mobiles,Screen protector for tablet
15-May-20,Housing & Community Services,Argos Ltd,123.95,Housing  - other Costs,Bed frame for vulnerable tenant
04-May-20,Housing & Community Services,Argos Ltd,232.49,Services for Clients,Furniture for homeless household
04-May-20,Housing & Community Services,Argos Ltd,260.77,Services for Clients,Furniture for homeless household
04-May-20,Housing & Community Services,Argos Ltd,109.96,Services for Clients,storage for homeless household
12-May-20,Housing & Community Services,Argos Ltd,553.92,Specific Campaigns / Projects expenditure,Homeless family items pack
01-May-20,Housing & Community Services,Asda George Com Leeds,773.40,Specific Campaigns / Projects expenditure,Homeless family pack items
05-May-20,Housing & Community Services,Asda George Com Leeds,104.94,Specific Campaigns / Projects expenditure,Homeless family pack items
01-May-20,Housing & Community Services,Booker Limited Ipswich,19.90,Materials and Supplies - Miscellaneous,10x spray bottles for disinfectant at Void properties
04-May-20,Housing & Community Services,Booker Limited Ipswich,1.90,Materials and Supplies - Miscellaneous,Milk
19-May-20,Housing & Community Services,Booker Limited Ipswich,1.70,Materials and Supplies - Miscellaneous,Milk
07-May-20,Housing & Community Services,Cpw Locksmiths And Securi,130.00,HRA Special Repairs & Maintenance,AHC lock replacement hairdressing Dundee replacement key
14-May-20,Housing & Community Services,Cpw Locksmiths And Securi,221.67,HRA Special Repairs & Maintenance,provide lock to scheme
25-May-20,Housing & Community Services,Cpw Locksmiths And Securi,110.00,HRA Special Repairs & Maintenance,provide lock to scheme
29-May-20,Housing & Community Services,Cpw Locksmiths And Securi,120.00,HRA Special Repairs & Maintenance,provide lock to scheme
01-May-20,Housing & Community Services,Currys Online,219.00,Specific Campaigns / Projects expenditure,Homeless family pack items
05-May-20,Housing & Community Services,Currys Online,737.98,Specific Campaigns / Projects expenditure,Homeless family pack items
07-May-20,Housing & Community Services,Currys Online,908.95,Specific Campaigns / Projects expenditure,Homeless family pack items
27-May-20,Housing & Community Services,Currys Online,"1,839.88",Specific Campaigns / Projects expenditure,Homeless family packs
08-May-20,Housing & Community Services,Dunelm,929.00,Specific Campaigns / Projects expenditure,Homeless family pack items
13-May-20,Housing & Community Services,Dunelm,523.00,Specific Campaigns / Projects expenditure,Homeless family pack items
13-May-20,Housing & Community Services,Dunelm,96.00,Specific Campaigns / Projects expenditure,Homeless family starter packs
07-May-20,Housing & Community Services,General Register Offic,15.00,Specific Campaigns / Projects expenditure,birth certificate for homeless person
14-May-20,Housing & Community Services,Inst Of Lic,465.00,Subscriptions - Service Related,Membership renewal 
14-May-20,Housing & Community Services,Ipswich Bc,72.00,Capital Expenditure,Planning fees for 73 Inverness Road
11-May-20,Housing & Community Services,J2 Efax Plus Service,11.00,Miscellaneous Expenses,Monthly fee for use of secure fax system (for food parcels)
29-May-20,Housing & Community Services,Machine Mart Ltd,79.98,Equipment / Furniture / Materials,Purchase for Crown Car Park
27-May-20,Housing & Community Services,Paypal,807.50,Training Expenses,Gas Regs course
08-May-20,Housing & Community Services,Sainsburys S/mkts,1.90,Materials and Supplies - Miscellaneous,Milk
13-May-20,Housing & Community Services,Sainsburys S/mkts,1.90,Materials and Supplies - Miscellaneous,Milk
13-May-20,Housing & Community Services,Smythstoys.Com,288.86,Specific Campaigns / Projects expenditure,Homeless family pack items
06-May-20,Housing & Community Services,Storagemart UK A-B5a52954,94.12,Services for Clients,storage for homeless household
18-May-20,Housing & Community Services,Tvlicensing.Co.Uk,157.50,Specific Campaigns / Projects expenditure,TV License for one west villa unit
18-May-20,Housing & Community Services,Tvlicensing.Co.Uk,157.50,Specific Campaigns / Projects expenditure,TV License for one west villa unit
18-May-20,Housing & Community Services,Tvlicensing.Co.Uk,157.50,Specific Campaigns / Projects expenditure,TV License for one west villa unit
18-May-20,Housing & Community Services,Tvlicensing.Co.Uk,157.50,Specific Campaigns / Projects expenditure,TV License for one west villa unit
04-May-20,Housing & Community Services,Wf* Wayfair 3088051564,139.99,Services for Clients,Furniture for homeless household
12-May-20,Housing & Community Services,Www.Banneruk.Com,65.12,Stationery,Stationery
15-May-20,Housing & Community Services,Www.Iomnet.Org.Uk,155.00,Employee Expenses,CILT 
29-Apr-20,Housing & Community Services,Www.Ofcom.Org.Uk,75.00,Licences & Other Fees,Annual 2-Way-Radio Licence
15-May-20,People & Governance,Amazon.Co.Uk,42.81,Miscellaneous Stock  - Purchases,A4 Laminating Pouches (Print Room)
21-May-20,People & Governance,Amznmktplace,5.82,Miscellaneous Stock  - Purchases,Stylus Pens for Touchscreens (Print Room)
19-May-20,People & Governance,Quadient UK Ltd,122.82,Equipment / Furniture / Materials,Sealing Fluid for Folder Inserter (Print Room)
21-May-20,People & Governance,Tesco Store 2748,18.33,Computer Consumables and other Minor IT costs,Ink Cartridge
28-May-20,People & Governance,Tesco Store 2748,30.83,Computer Consumables and other Minor IT costs,Ink Cartridge
22-May-20,People & Governance,Wh Smith,62.93,Miscellaneous Stock  - Purchases,A4 Laminates for Park Notices (Printing)
06-May-20,People & Governance,Www.Paper.Co.Uk,84.41,Miscellaneous Stock  - Purchases,Specialist Paper for the print room use
14-May-20,People & Governance,Www.Paper.Co.Uk,166.53,Miscellaneous Stock  - Purchases,Specialist Paper for the Print Room use
03-Apr-20,,Novotel Ipswich,201.67,Housing  - other Costs,Emergency accommodation for Sheltered
